fUSD/lending_fUSD_20250618
["ID","MTS","AMOUNT","RATE_DAILY","PERIOD"]
[366382653,1750223454616,-490.0,0.00016602,2]
[366382655,1750223454626,-490.0,0.00016602,2]
[366382657,1750223454636,-490.0,0.00016602,2]
[366382659,1750223454646,-490.0,0.00016602,2]
[366382661,1750223454656,-154.45066927,0.00016602,2]
[366382663,1750223454666,-490.0,0.00016602,2]
[366382665,1750223454675,-490.0,0.00016602,2]
[366382667,1750223454686,-490.0,0.00016602,2]
[366382669,1750223454695,-731.64,0.00016602,2]
[366382671,1750223454710,-490.0,0.00016602,2]
[366382673,1750223454720,-490.0,0.00016602,2]
[366382675,1750223454730,-1549.42,0.00016602,2]
[366382677,1750223454740,-490.0,0.00016602,2]
[366382679,1750223454751,-736.36,0.00016602,2]
[366382681,1750223454762,-490.0,0.00016602,2]
[366382683,1750223454771,-490.0,0.00016602,2]
[366382686,1750223454782,-490.0,0.00016602,2]
[366382688,1750223454792,-490.0,0.00016602,2]
[366382689,1750223454802,-490.0,0.00016602,2]
[366382692,1750223454812,-490.0,0.00016602,2]
[366382694,1750223454821,-490.0,0.00016602,2]
[366382696,1750223454831,-490.0,0.00016602,2]
[366382698,1750223454841,-490.0,0.00016602,2]
[366382699,1750223454850,-679.65,0.00016602,2]
[366382702,1750223454859,-490.0,0.00016602,2]
[366382704,1750223454869,-490.0,0.00016602,2]
[366382706,1750223454879,-490.0,0.00016602,2]
[366382708,1750223454888,-490.0,0.00016602,2]
[366382710,1750223454898,-1142.31,0.00016602,2]
[366382712,1750223454907,-490.0,0.00016602,2]
[366382714,1750223454918,-499.33,0.00016602,2]
[366382716,1750223454928,-490.0,0.00016602,2]
[366382718,1750223454938,-490.0,0.00016602,2]
[366382720,1750223454947,-681.96,0.00016602,2]
[366382722,1750223454957,-674.34,0.00016602,2]
[366382724,1750223454966,-683.99,0.00016602,2]
[366382726,1750223454976,-1115.75,0.00016602,2]
[366382728,1750223454986,-560.86,0.00016602,2]
[366382730,1750223454995,-847.38,0.00016602,2]
[366382732,1750223455004,-1005.49,0.00016602,2]
[366382734,1750223455015,-570.99,0.00016602,2]
[366382736,1750223455024,-490.0,0.00016602,2]
[366382738,1750223455033,-151.0,0.00016602,2]
[366382740,1750223455043,-176.017517,0.00016602,2]
[366382742,1750223455053,-490.0,0.00016602,2]
[366382744,1750223455064,-151.0,0.00016602,2]
[366382746,1750223455073,-788.04,0.00016602,2]
[366382748,1750223455082,-151.0,0.00016602,2]
[366382750,1750223455092,-151.0,0.00016602,2]
[366382752,1750223455102,-309.26,0.00016602,2]
[366382754,1750223455111,-936.17,0.00016602,2]
[366382756,1750223455121,-1002.15,0.00016602,2]
[366382758,1750223455131,-490.0,0.00016602,2]
[366382760,1750223455141,-787.56665,0.00016602,2]
[366382762,1750223455151,-245.944091,0.00016602,2]
[366382764,1750223455161,-490.0,0.00016602,2]
[366382766,1750223455170,-490.0,0.00016602,2]
[366382768,1750223455180,-490.0,0.00016602,2]
[366382770,1750223455189,-490.0,0.00016602,2]
[366382772,1750223455199,-490.0,0.00016602,2]
[366382774,1750223455209,-858.39,0.00016602,2]
[366382776,1750223455218,-490.0,0.00016602,2]
[366382778,1750223455228,-490.0,0.00016602,2]
[366382780,1750223455238,-502.81,0.00016602,2]
[366382782,1750223455248,-490.0,0.00016602,2]
[366382785,1750223455258,-490.0,0.00016602,2]
[366382787,1750223455268,-490.0,0.00016602,2]
[366382789,1750223455277,-490.0,0.00016602,2]
[366382791,1750223455287,-692.41,0.00016602,2]
[366382793,1750223455296,-490.0,0.00016602,2]
[366382795,1750223455306,-490.0,0.00016602,2]
[366382797,1750223455316,-490.0,0.00016602,2]
[366382799,1750223455326,-490.0,0.00016602,2]
[366382801,1750223455337,-300.0,0.00016602,2]
[366382803,1750223455347,-490.0,0.00016602,2]
[366382805,1750223455356,-1104.73,0.00016602,2]
[366382807,1750223455366,-559.22,0.00016602,2]
[366382809,1750223455375,-490.0,0.00016602,2]
[366382811,1750223455385,-490.0,0.00016602,2]
[366382813,1750223455394,-490.0,0.00016602,2]
[366382815,1750223455403,-490.0,0.00016602,2]
[366382817,1750223455413,-490.0,0.00016602,2]
[366382819,1750223455423,-740.11,0.00016602,2]
[366382821,1750223455432,-1031.23,0.00016602,2]
[366382823,1750223455442,-490.0,0.00016602,2]
[366382825,1750223455451,-1025.47,0.00016602,2]
[366382827,1750223455461,-490.0,0.00016602,2]
[366382829,1750223455471,-578.04,0.00016602,2]
[366382831,1750223455481,-151.0,0.00016602,2]
[366382833,1750223455490,-996.23,0.00016602,2]
[366382835,1750223455500,-152.678273,0.00016602,2]
[366382837,1750223455509,-548.96,0.00016602,2]
[366382839,1750223455519,-1585.39,0.00016602,2]
[366382841,1750223455528,-490.0,0.00016602,2]
[366382843,1750223455538,-1147.41,0.00016602,2]
[366382845,1750223455548,-909.31,0.00016602,2]
[366382847,1750223455558,-1175.41,0.00016602,2]
[366382849,1750223455568,-490.0,0.00016602,2]
[366382851,1750223455577,-490.0,0.00016602,2]
[366382853,1750223455586,-532.1,0.00016602,2]
[366382855,1750223455596,-769.46,0.00016602,2]
[366382857,1750223455606,-490.0,0.00016602,2]
[366382859,1750223455616,-490.0,0.00016602,2]
[366382861,1750223455625,-151.0,0.00016602,2]
[366382863,1750223455635,-151.0,0.00016602,2]
[366382866,1750223455645,-151.723763,0.00016602,2]
[366382868,1750223455655,-691.2,0.00016602,2]
[366382870,1750223455664,-622.91,0.00016602,2]
[366382872,1750223455674,-490.0,0.00016602,2]
[366382874,1750223455683,-864.39,0.00016602,2]
[366382876,1750223455692,-490.0,0.00016602,2]
[366382878,1750223455707,-490.0,0.00016602,2]
[366382880,1750223455718,-1460.18,0.00016602,2]
[366382882,1750223455727,-490.0,0.00016602,2]
[366382884,1750223455738,-490.0,0.00016602,2]
[366382886,1750223455747,-490.0,0.00016602,2]
[366382888,1750223455757,-490.0,0.00016602,2]
[366382890,1750223455768,-490.0,0.00016602,2]
[366382892,1750223455779,-627.82,0.00016602,2]
[366382894,1750223455789,-490.0,0.00016602,2]
[366382895,1750223455798,-490.0,0.00016602,2]
[366382896,1750223455807,-1152.07,0.00016602,2]
[366382897,1750223455817,-624.22,0.00016602,2]
[366382898,1750223455826,-490.0,0.00016602,2]
[366382899,1750223455835,-674.57,0.00016602,2]
[366382900,1750223455844,-490.0,0.00016602,2]
[366382901,1750223455853,-651.58,0.00016602,2]
[366382902,1750223455863,-490.0,0.00016602,2]
[366382904,1750223455872,-490.0,0.00016602,2]
[366382906,1750223455882,-871.35,0.00016602,2]
[366382908,1750223455891,-1001.71,0.00016602,2]
[366382910,1750223455901,-1338.83,0.00016602,2]
[366382912,1750223455910,-490.0,0.00016602,2]
[366382914,1750223455920,-490.0,0.00016602,2]
[366382916,1750223455929,-151.0,0.00016602,2]
[366382918,1750223455938,-151.0,0.00016602,2]
[366382920,1750223455947,-151.0,0.00016602,2]
[366382922,1750223455957,-574.5,0.00016602,2]
[366382924,1750223455966,-490.0,0.00016602,2]
[366382926,1750223455976,-168.225736,0.00016602,2]
[366382928,1750223455985,-151.0,0.00016602,2]
[366382930,1750223455995,-151.0,0.00016602,2]
[366382932,1750223456004,-151.0,0.00016602,2]
[366382934,1750223456014,-770.3,0.00016602,2]
[366382936,1750223456023,-490.0,0.00016602,2]
[366382938,1750223456034,-563.86,0.00016602,2]
[366382940,1750223456043,-804.0,0.00016602,2]
[366382942,1750223456053,-490.0,0.00016602,2]
[366382944,1750223456062,-490.0,0.00016602,2]
[366382946,1750223456072,-490.0,0.00016602,2]
[366382948,1750223456081,-490.0,0.00016602,2]
[366382950,1750223456090,-490.0,0.00016602,2]
[366382952,1750223456100,-1245.2,0.00016602,2]
[366382954,1750223456109,-490.0,0.00016602,2]
[366382956,1750223456119,-532.57,0.00016602,2]
[366382958,1750223456128,-1096.78,0.00016602,2]
[366382960,1750223456138,-490.0,0.00016602,2]
[366382962,1750223456147,-647.57,0.00016602,2]
[366382964,1750223456157,-490.0,0.00016602,2]
[366382966,1750223456166,-819.31,0.00016602,2]
[366382968,1750223456175,-490.0,0.00016602,2]
[366382970,1750223456185,-490.0,0.00016602,2]
[366382972,1750223456194,-490.0,0.00016602,2]
[366382974,1750223456204,-490.0,0.00016602,2]
[366382976,1750223456213,-490.0,0.00016602,2]
[366382978,1750223456222,-1077.49,0.00016602,2]
[366382980,1750223456231,-151.0,0.00016602,2]
[366382982,1750223456241,-1713.1,0.00016602,2]
[366382984,1750223456250,-490.0,0.00016602,2]
[366382986,1750223456259,-152.170871,0.00016602,2]
[366382988,1750223456269,-490.0,0.00016602,2]
[366382990,1750223456279,-490.0,0.00016602,2]
[366382992,1750223456288,-520.52,0.00016602,2]
[366382994,1750223456298,-667.34,0.00016602,2]
[366382996,1750223456307,-490.0,0.00016602,2]
[366382998,1750223456317,-490.0,0.00016602,2]
[366383000,1750223456327,-490.0,0.00016602,2]
[366383002,1750223456337,-490.0,0.00016602,2]
[366383004,1750223456347,-490.0,0.00016602,2]
[366383040,1750223456660,-1163.46,0.00016602,2]
[366383042,1750223456674,-151.0,0.00016602,2]
[366383044,1750223456683,-490.0,0.00016602,2]
[366383046,1750223456693,-151.0,0.00016602,2]
[366383048,1750223456704,-651.07,0.00016602,2]
[366383050,1750223456715,-188.154248,0.00016602,2]
[366383052,1750223456725,-490.0,0.00016602,2]
[366383054,1750223456734,-1139.82,0.00016602,2]
[366383056,1750223456744,-490.0,0.00016602,2]
[366383058,1750223456754,-490.0,0.00016602,2]
[366383060,1750223456764,-1041.5,0.00016602,2]
[366383062,1750223456774,-490.0,0.00016602,2]
[366383064,1750223456785,-490.0,0.00016602,2]
[366383067,1750223456796,-490.0,0.00016602,2]
[366383069,1750223456805,-593.28,0.00016602,2]
[366383071,1750223456815,-490.0,0.00016602,2]
[366383073,1750223456825,-490.0,0.00016602,2]
[366383075,1750223456834,-951.97,0.00016602,2]
[366383077,1750223456844,-490.0,0.00016602,2]
[366383079,1750223456853,-817.54,0.00016602,2]
[366383081,1750223456862,-490.0,0.00016602,2]
[366383083,1750223456872,-490.0,0.00016602,2]
[366383085,1750223456881,-569.21733593,0.00016602,2]
[366383087,1750223456890,-490.0,0.00016602,2]
[366383089,1750223456900,-506.71,0.00016602,2]
[366383091,1750223456910,-490.0,0.00016602,2]
[366383093,1750223456919,-490.0,0.00016602,2]
[366383095,1750223456929,-151.0,0.00016602,2]
[366383097,1750223456938,-490.0,0.00016602,2]
[366383099,1750223456949,-243.180948,0.00016602,2]
[366383101,1750223456958,-490.0,0.00016602,2]
[366383103,1750223456967,-763.11,0.00016602,2]
[366383105,1750223456977,-490.0,0.00016602,2]
[366383107,1750223456986,-490.0,0.00016602,2]
[366383109,1750223456996,-490.0,0.00016602,2]
[366383111,1750223457006,-490.0,0.00016602,2]
[366383113,1750223457016,-610.87,0.00016602,2]
[366383115,1750223457025,-1069.14,0.00016602,2]
[366383117,1750223457034,-246.39266234,0.00016602,2]
[366383119,1750223457044,-683.22,0.00016602,2]
[366383121,1750223457053,-537.5,0.00016602,2]
[366383123,1750223457063,-490.0,0.00016602,2]
[366383125,1750223457072,-546.71,0.00016602,2]
[366383127,1750223457082,-490.0,0.00016602,2]
[366383129,1750223457091,-670.49,0.00016602,2]
[366383131,1750223457101,-490.0,0.00016602,2]
[366383133,1750223457110,-722.26,0.00016602,2]
[366383135,1750223457120,-1478.25,0.00016602,2]
[366383137,1750223457130,-490.0,0.00016602,2]
[366383139,1750223457139,-490.0,0.00016602,2]
[366383141,1750223457149,-490.0,0.00016602,2]
[366383143,1750223457158,-490.0,0.00016602,2]
[366383145,1750223457168,-151.0,0.00016602,2]
[366383147,1750223457177,-151.0,0.00016602,2]
[366383149,1750223457187,-555.59,0.00016602,2]
[366383151,1750223457196,-151.0,0.00016602,2]
[366383153,1750223457205,-151.0,0.00016602,2]
[366383155,1750223457215,-195.316092,0.00016602,2]
[366383157,1750223457224,-490.0,0.00016602,2]
[366383159,1750223457234,-490.0,0.00016602,2]
[366383161,1750223457243,-828.16,0.00016602,2]
[366383162,1750223457253,-490.0,0.00016602,2]
[366383163,1750223457263,-509.26,0.00016602,2]
[366383164,1750223457273,-1688.18,0.00016602,2]
[366383165,1750223457283,-151.0,0.00016602,2]
[366383166,1750223457292,-151.0,0.00016602,2]
[366383167,1750223457302,-177.003724,0.00016602,2]
[366383168,1750223457311,-490.0,0.00016602,2]
[366383170,1750223457321,-733.62,0.00016602,2]
[366383172,1750223457331,-490.0,0.00016602,2]
[366383174,1750223457340,-490.0,0.00016602,2]
[366383176,1750223457349,-490.0,0.00016602,2]
[366383178,1750223457359,-490.0,0.00016602,2]
[366383180,1750223457368,-1121.62,0.00016602,2]
[366383182,1750223457378,-799.53,0.00016602,2]
[366383184,1750223457387,-151.42246,0.00016602,2]
[366383186,1750223457397,-490.0,0.00016602,2]
[366383188,1750223457407,-2558.58,0.00016602,2]
[366383190,1750223457416,-490.0,0.00016602,2]
[366383192,1750223457426,-151.0,0.00016602,2]
[366383194,1750223457435,-160.387695,0.00016602,2]
[366383197,1750223457445,-490.0,0.00016602,2]
[366383199,1750223457454,-731.11,0.00016602,2]
[366383201,1750223457464,-490.0,0.00016602,2]
[366383203,1750223457473,-1781.2,0.00016602,2]
[366383205,1750223457483,-490.0,0.00016602,2]
[366383207,1750223457493,-490.0,0.00016602,2]
[366383209,1750223457502,-490.0,0.00016602,2]
[366383211,1750223457512,-151.0,0.00016602,2]
[366383213,1750223457521,-490.0,0.00016602,2]
[366383215,1750223457530,-152.379308,0.00016602,2]
[366383217,1750223457540,-151.0,0.00016602,2]
[366383218,1750223457550,-755.76,0.00016602,2]
[366383220,1750223457559,-151.0,0.00016602,2]
[366383223,1750223457569,-490.0,0.00016602,2]
[366383225,1750223457579,-153.953065,0.00016602,2]
[366383227,1750223457589,-490.0,0.00016602,2]
[366383228,1750223457598,-490.0,0.00016602,2]
[366383230,1750223457608,-151.0,0.00016602,2]
[366383233,1750223457617,-151.0,0.00016602,2]
[366383235,1750223457629,-490.0,0.00016602,2]
[366383236,1750223457638,-151.0,0.00016602,2]
[366383238,1750223457647,-151.0,0.00016602,2]
[366383241,1750223457657,-484.91633445,0.00016602,2]
[366383243,1750223457667,-490.0,0.00016602,2]
[366383244,1750223457676,-490.0,0.00016602,2]
[366383247,1750223457686,-951.18,0.00016602,2]
[366383249,1750223457696,-490.0,0.00016602,2]
[366383251,1750223457707,-490.0,0.00016602,2]
[366383252,1750223457716,-490.0,0.00016602,2]
[366383254,1750223457726,-490.0,0.00016602,2]
[366383257,1750223457736,-513.51,0.00016602,2]
[366383258,1750223457746,-152.042463,0.00016602,2]
[366383261,1750223457756,-841.9,0.00016602,2]
[366383263,1750223457766,-490.0,0.00016602,2]
[366383265,1750223457776,-729.74,0.00016602,2]
[366383267,1750223457788,-491.06,0.00016602,2]
[366383269,1750223457798,-1243.72,0.00016602,2]
[366383271,1750223457808,-490.0,0.00016602,2]
[366383273,1750223457818,-490.0,0.00016602,2]
[366383275,1750223457828,-151.0,0.00016602,2]
[366383277,1750223457837,-490.0,0.00016602,2]
[366383279,1750223457847,-490.0,0.00016602,2]
[366383281,1750223457856,-490.0,0.00016602,2]
[366383283,1750223457866,-490.0,0.00016602,2]
[366383285,1750223457875,-1181.55,0.00016602,2]
[366383287,1750223457885,-594.65,0.00016602,2]
[366383289,1750223457894,-1466.49,0.00016602,2]
[366383291,1750223457904,-290.51,0.00016602,2]
[366383293,1750223457913,-490.0,0.00016602,2]
[366383295,1750223457922,-616.05,0.00016602,2]
[366383297,1750223457932,-490.0,0.00016602,2]
[366383299,1750223457941,-1184.6,0.00016602,2]
[366383301,1750223457951,-490.0,0.00016602,2]
[366383303,1750223457960,-539.51,0.00016602,2]
[366383305,1750223457970,-490.0,0.00016602,2]
[366383307,1750223457979,-490.0,0.00016602,2]
[366383309,1750223457988,-1512.23,0.00016602,2]
[366383311,1750223457997,-490.0,0.00016602,2]
[366383313,1750223458007,-490.0,0.00016602,2]
[366383315,1750223458016,-490.0,0.00016602,2]
[366383317,1750223458026,-1551.17,0.00016602,2]
[366383319,1750223458036,-605.86,0.00016602,2]
[366383321,1750223458045,-490.0,0.00016602,2]
[366383323,1750223458055,-521.76786814,0.00016602,2]
[366383325,1750223458064,-490.0,0.00016602,2]
[366383327,1750223458075,-490.0,0.00016602,2]
[366383329,1750223458085,-490.0,0.00016602,2]
[366383331,1750223458095,-151.0,0.00016602,2]
[366383334,1750223458104,-490.0,0.00016602,2]
[366383335,1750223458113,-151.0,0.00016602,2]
[366383338,1750223458123,-501.05447325,0.00016602,2]
[366383340,1750223458134,-490.0,0.00016602,2]
[366383342,1750223458143,-151.0,0.00016602,2]
[366383344,1750223458153,-490.0,0.00016602,2]
[366383346,1750223458162,-206.016068,0.00016602,2]
[366383348,1750223458171,-1257.52,0.00016602,2]
[366383350,1750223458180,-490.0,0.00016602,2]
[366383352,1750223458190,-580.6,0.00016602,2]
[366383354,1750223458199,-490.0,0.00016602,2]
[366383356,1750223458209,-490.0,0.00016602,2]
[366383358,1750223458218,-623.06,0.00016602,2]
[366383360,1750223458227,-2055.56,0.00016602,2]
[366383361,1750223458236,-153.718015,0.00016602,2]
[366383364,1750223458246,-490.0,0.00016602,2]
[366383366,1750223458257,-490.0,0.00016602,2]
[366383368,1750223458266,-490.0,0.00016602,2]
[366383370,1750223458275,-195.099981,0.00016602,2]
[366383372,1750223458285,-195.099981,0.00016602,2]
[366383374,1750223458294,-195.099981,0.00016602,2]
[366383376,1750223458303,-195.099981,0.00016602,2]
[366383378,1750223458313,-490.0,0.00016602,2]
[366383380,1750223458323,-1457.73,0.00016602,2]
[366383382,1750223458333,-524.47,0.00016602,2]
[366383384,1750223458343,-942.6,0.00016602,2]
[366383386,1750223458353,-1368.09,0.00016602,2]
[366383388,1750223458362,-490.0,0.00016602,2]
[366383390,1750223458372,-634.0,0.00016602,2]
[366383392,1750223458381,-195.099981,0.00016602,2]
[366383394,1750223458391,-490.0,0.00016602,2]
[366383396,1750223458399,-195.099981,0.00016602,2]
[366383398,1750223458409,-490.0,0.00016602,2]
[366383400,1750223458418,-195.099981,0.00016602,2]
[366383402,1750223458427,-195.099981,0.00016602,2]
[366383404,1750223458437,-522.45,0.00016602,2]
[366383406,1750223458446,-490.0,0.00016602,2]
[366383408,1750223458455,-490.0,0.00016602,2]
[366383410,1750223458464,-490.0,0.00016602,2]
[366383412,1750223458473,-490.0,0.00016602,2]
[366383414,1750223458482,-490.0,0.00016602,2]
[366383416,1750223458492,-860.86,0.00016602,2]
[366383418,1750223458502,-1094.97,0.00016602,2]
[366383420,1750223458511,-705.08,0.00016602,2]
[366383422,1750223458521,-151.0,0.00016602,2]
[366383424,1750223458530,-490.0,0.00016602,2]
[366383426,1750223458539,-490.0,0.00016602,2]
[366383428,1750223458548,-490.0,0.00016602,2]
[366383430,1750223458558,-490.0,0.00016602,2]
[366383432,1750223458568,-583.3,0.00016602,2]
[366383434,1750223458578,-490.0,0.00016602,2]
[366383436,1750223458587,-490.0,0.00016602,2]
[366383438,1750223458595,-490.0,0.00016602,2]
[366383439,1750223458604,-490.0,0.00016602,2]
[366383440,1750223458613,-2270.29,0.00016602,2]
[366383441,1750223458623,-490.0,0.00016602,2]
[366383442,1750223458632,-490.0,0.00016602,2]
[366383443,1750223458642,-496.37695765,0.00016602,2]
[366383444,1750223458651,-355.96506,0.00016602,2]
[366383445,1750223458660,-355.96506,0.00016602,2]
[366383447,1750223458669,-490.0,0.00016602,2]
[366383449,1750223458678,-355.96506,0.00016602,2]
[366383451,1750223458687,-355.96506,0.00016602,2]
[366383453,1750223458697,-495.87,0.00016602,2]
[366383455,1750223458711,-490.0,0.00016602,2]
[366383457,1750223458720,-490.0,0.00016602,2]
[366383459,1750223458729,-490.0,0.00016602,2]
[366383461,1750223458739,-1458.27,0.00016602,2]
[366383463,1750223458749,-490.0,0.00016602,2]
[366383465,1750223458759,-494.37,0.00016602,2]
[366383467,1750223458769,-442.76765793,0.00016602,2]
[366383469,1750223458779,-952.14,0.00016602,2]
[366383471,1750223458996,-1407.06,0.00016602,2]
[366383473,1750223459006,-490.0,0.00016602,2]
[366383475,1750223459016,-261.18966819,0.00016602,2]
[366383477,1750223459025,-2245.21,0.00016602,2]
[366383479,1750223459035,-490.0,0.00016602,2]
[366383481,1750223459044,-490.0,0.00016602,2]
[366383483,1750223459054,-578.84,0.00016602,2]
[366383485,1750223459064,-553.43358958,0.00016602,2]
[366383487,1750223459074,-726.63,0.00016602,2]
[366383489,1750223459084,-1104.54,0.00016602,2]
[366383491,1750223459093,-823.46,0.00016602,2]
[366383493,1750223459104,-1553.24,0.00016602,2]
[366383495,1750223459114,-490.0,0.00016602,2]
[366383497,1750223459124,-689.74,0.00016602,2]
[366383499,1750223459133,-490.0,0.00016602,2]
[366383501,1750223459143,-1598.85,0.00016602,2]
[366383503,1750223459153,-490.0,0.00016602,2]
[366383505,1750223459163,-494.99,0.00016602,2]
[366383507,1750223459172,-1033.29,0.00016602,2]
[366383509,1750223459182,-612.0,0.00016602,2]
[366383510,1750223459193,-490.0,0.00016602,2]
[366383511,1750223459299,-1072.35,0.00016602,2]
[366383512,1750223459309,-490.0,0.00016602,2]
[366383514,1750223459321,-1000.0,0.00016602,2]
[366383516,1750223459331,-490.0,0.00016602,2]
[366383517,1750223459340,-490.0,0.00016602,2]
[366383518,1750223459350,-592.08,0.00016602,2]
[366383519,1750223459360,-490.0,0.00016602,2]
[366383520,1750223459370,-490.0,0.00016602,2]
[366383521,1750223459380,-490.0,0.00016602,2]
[366383522,1750223459390,-1950.4,0.00016602,2]
[366383523,1750223459400,-1024.37,0.00016602,2]
[366383524,1750223459410,-493.27,0.00016602,2]
[366383525,1750223459420,-316.85789211,0.00016602,2]
[366383527,1750223459430,-932.25,0.00016602,2]
[366383529,1750223459440,-1020.99,0.00016602,2]
[366383531,1750223459449,-490.0,0.00016602,2]
[366383533,1750223459458,-1214.56,0.00016602,2]
[366383534,1750223459468,-490.0,0.00016602,2]
[366383537,1750223459477,-612.78,0.00016602,2]
[366383539,1750223459487,-490.0,0.00016602,2]
[366383541,1750223459497,-884.34,0.00016602,2]
[366383543,1750223459506,-151.0,0.00016602,2]
[366383545,1750223459516,-490.0,0.00016602,2]
[366383547,1750223459525,-490.0,0.00016602,2]
[366383549,1750223459534,-1207.76,0.00016602,2]
[366383551,1750223459543,-517.0,0.00016602,2]
[366383552,1750223459552,-152.824716,0.00016602,2]
[366383555,1750223459562,-770.2,0.00016602,2]
[366383556,1750223459571,-490.0,0.00016602,2]
[366383559,1750223459581,-584.98,0.00016602,2]
[366383561,1750223459591,-490.0,0.00016602,2]
[366383562,1750223459601,-3884.6,0.00016602,2]
[366383564,1750223459610,-554.58,0.00016602,2]
[366383567,1750223459620,-431.9257299,0.00016602,2]
[366383569,1750223459630,-1522.68,0.00016602,2]
[366383571,1750223459640,-490.0,0.00016602,2]
[366383573,1750223459649,-828.1,0.00016602,2]
[366383575,1750223459659,-153.023233,0.00016602,2]
[366383577,1750223459668,-882.28,0.00016602,2]
[366383579,1750223459677,-2449.13,0.00016602,2]
[366383581,1750223459687,-151.487683,0.00016602,2]
[366383583,1750223459697,-490.0,0.00016602,2]
[366383585,1750223459710,-2030.78,0.00016602,2]
[366383587,1750223459719,-490.0,0.00016602,2]
[366383589,1750223459729,-490.0,0.00016602,2]
[366383591,1750223459738,-1127.02,0.00016602,2]
[366383593,1750223459748,-1710.07,0.00016602,2]
[366383595,1750223459757,-490.0,0.00016602,2]
[366383597,1750223459766,-2067.75,0.00016602,2]
[366383599,1750223459776,-490.0,0.00016602,2]
[366383601,1750223459786,-490.0,0.00016602,2]
[366383603,1750223459795,-6190.46,0.00016602,2]
[366383605,1750223459804,-592.48,0.00016602,2]
[366383607,1750223459813,-151.0,0.00016602,2]
[366383609,1750223459822,-4967.03,0.00016602,2]
[366383611,1750223459832,-151.0,0.00016602,2]
[366383613,1750223459843,-151.0,0.00016602,2]
[366383615,1750223459852,-151.0,0.00016602,2]
[366383617,1750223459861,-490.0,0.00016602,2]
[366383619,1750223459870,-2192.21,0.00016602,2]
[366383621,1750223459881,-490.0,0.00016602,2]
[366383623,1750223459890,-4265.58,0.00016602,2]
[366383625,1750223459899,-1461.47,0.00016602,2]
[366383627,1750223459909,-490.0,0.00016602,2]
[366383629,1750223459918,-490.0,0.00016602,2]
[366383631,1750223459927,-703.27,0.00016602,2]
[366383633,1750223459937,-502.71,0.00016602,2]
[366383635,1750223459946,-151.0,0.00016602,2]
[366383637,1750223459955,-151.0,0.00016602,2]
[366383639,1750223459964,-490.0,0.00016602,2]
[366383641,1750223459973,-490.0,0.00016602,2]
[366383642,1750223459982,-151.0,0.00016602,2]
[366383644,1750223459991,-302.031881,0.00016602,2]
[366383645,1750223460001,-151.0,0.00016602,2]
[366383646,1750223460011,-302.031881,0.00016602,2]
[366383647,1750223460021,-302.031881,0.00016602,2]
[366383648,1750223460031,-302.031881,0.00016602,2]
[366383649,1750223460041,-490.0,0.00016602,2]
[366383650,1750223460051,-2022.27,0.00016602,2]